fUSD/lending_fUSD_20250311
["ID","MTS","AMOUNT","RATE_DAILY","PERIOD"]
[355948918,1741727462229,-151.0,9.8e-05,2]
[355948919,1741727462238,-260.232165,9.8e-05,2]
[355948920,1741727462247,-260.232165,9.8e-05,2]
[355948921,1741727462257,-1237.371674,9.8e-05,2]
[355948922,1741727462266,-1237.371674,9.8e-05,2]
[355948923,1741727462276,-2180.841914,9.8e-05,2]
[355948924,1741727462285,-151.0,9.8e-05,2]
[355948925,1741727462294,-151.0,9.8e-05,2]
[355948926,1741727462304,-2180.841914,9.8e-05,2]
[355948927,1741727462314,-543.557461,9.8e-05,2]
[355948928,1741727462324,-730.084523,9.8e-05,2]
[355948929,1741727462333,-543.557461,9.8e-05,2]
[355948930,1741727462343,-730.084523,9.8e-05,2]
[355948931,1741727462352,-574.44592,9.8e-05,2]
[355948932,1741727462361,-574.44592,9.8e-05,2]
[355948933,1741727462371,-318.428282,9.8e-05,2]
[355948934,1741727462381,-318.428282,9.8e-05,2]
[355948935,1741727462391,-400.0,9.8e-05,3]
[355948936,1741727462402,-673.86,9.808e-05,2]
[355948937,1741727462411,-218.38244704,9.808e-05,2]
[355948938,1741727462421,-627.53,9.808e-05,2]
[355948939,1741727462430,-1260.19,9.808e-05,2]
[355948940,1741727462440,-500.0,9.808e-05,2]
[355948941,1741727462451,-500.0,9.808e-05,2]
[355948942,1741727462461,-775.34,9.808e-05,2]
[355948943,1741727462470,-500.93,9.808e-05,2]
[355948944,1741727462480,-500.0,9.808e-05,2]
[355948945,1741727462490,-942.11,9.808e-05,2]
[355948946,1741727462499,-500.0,9.808e-05,2]
[355948947,1741727462509,-500.0,9.808e-05,2]
[355948948,1741727462519,-1032.53,9.808e-05,2]
[355948949,1741727462530,-1212.89,9.808e-05,2]
[355948950,1741727462539,-500.0,9.808e-05,2]
[355948951,1741727462549,-500.0,9.808e-05,2]
[355948952,1741727462559,-763.91,9.808e-05,2]
[355948953,1741727462569,-672.09,9.808e-05,2]
[355948954,1741727462578,-500.0,9.808e-05,2]
[355948955,1741727462588,-578.8476377,9.808e-05,2]
[355948956,1741727462597,-625.24468671,9.808e-05,2]
[355948957,1741727462606,-500.0,9.808e-05,2]
[355948958,1741727462616,-471.98204857,9.808e-05,2]
[355948959,1741727462626,-500.0,9.808e-05,2]
[355948960,1741727462635,-508.16,9.808e-05,2]
[355948961,1741727462645,-976.44,9.808e-05,2]
[355948962,1741727462655,-500.0,9.808e-05,2]
[355948963,1741727462664,-1029.35,9.808e-05,2]
[355948964,1741727462673,-500.0,9.808e-05,2]
[355948965,1741727462682,-1182.87,9.808e-05,2]
[355948966,1741727462692,-500.0,9.808e-05,2]
[355948967,1741727462701,-500.0,9.808e-05,2]
[355948968,1741727462710,-1102.61,9.808e-05,2]
[355948969,1741727462720,-1055.13,9.808e-05,2]
[355948970,1741727462729,-500.0,9.808e-05,2]
[355948971,1741727462739,-500.0,9.808e-05,2]
[355948972,1741727462749,-500.0,9.808e-05,2]
[355948973,1741727462758,-500.0,9.808e-05,2]
[355948974,1741727462768,-534.88,9.808e-05,2]
[355948975,1741727462777,-261.92961581,9.808e-05,2]
[355948976,1741727462856,-500.0,9.808e-05,2]
[355948977,1741727462867,-500.0,9.808e-05,2]
[355948978,1741727462876,-1275.98,9.808e-05,2]
[355948979,1741727462885,-500.0,9.808e-05,2]
[355948980,1741727462895,-1167.96,9.808e-05,2]
[355948981,1741727462904,-1113.41,9.808e-05,2]
[355948982,1741727462913,-500.0,9.808e-05,2]
[355948983,1741727462923,-500.0,9.808e-05,2]
[355948984,1741727462932,-500.0,9.808e-05,2]
[355948985,1741727462941,-658.66,9.808e-05,2]
[355948986,1741727462950,-500.0,9.808e-05,2]
[355948987,1741727462960,-700.96,9.808e-05,2]
[355948988,1741727462969,-500.0,9.808e-05,2]
[355948989,1741727462979,-500.0,9.808e-05,2]
[355948990,1741727462988,-500.0,9.808e-05,2]
[355948991,1741727462998,-500.0,9.808e-05,2]
[355948992,1741727463007,-500.0,9.808e-05,2]
[355948993,1741727463016,-500.0,9.808e-05,2]
[355948994,1741727463026,-615.23,9.808e-05,2]
[355948995,1741727463036,-323.97667991,9.808e-05,2]
[355948996,1741727463045,-500.0,9.808e-05,2]
[355948997,1741727463055,-500.0,9.808e-05,2]
[355948998,1741727463065,-500.0,9.808e-05,2]
[355948999,1741727463075,-603.76,9.808e-05,2]
[355949000,1741727463085,-1228.49,9.808e-05,2]
[355949001,1741727463095,-500.0,9.808e-05,2]
[355949002,1741727463104,-500.0,9.808e-05,2]
[355949003,1741727463114,-500.0,9.808e-05,2]
[355949004,1741727463123,-699.94,9.808e-05,2]
[355949005,1741727463133,-500.0,9.808e-05,2]
[355949006,1741727463142,-552.48,9.808e-05,2]
[355949007,1741727463152,-500.0,9.808e-05,2]
[355949008,1741727463163,-500.0,9.808e-05,2]
[355949009,1741727463174,-1308.34,9.808e-05,2]
[355949010,1741727463184,-500.0,9.808e-05,2]
[355949011,1741727463194,-1051.5,9.808e-05,2]
[355949012,1741727463204,-500.0,9.808e-05,2]
[355949013,1741727463216,-983.86,9.808e-05,2]
[355949014,1741727463227,-500.0,9.808e-05,2]
[355949015,1741727463237,-500.0,9.808e-05,2]
[355949016,1741727463248,-1292.17,9.808e-05,2]
[355949017,1741727463258,-500.0,9.808e-05,2]
[355949018,1741727463268,-500.0,9.808e-05,2]
[355949019,1741727463279,-656.79,9.808e-05,2]
[355949020,1741727463289,-241.675436,9.808e-05,2]
[355949021,1741727463298,-1340.64,9.808e-05,2]
[355949022,1741727463310,-500.0,9.808e-05,2]
[355949023,1741727463319,-500.0,9.808e-05,2]
[355949024,1741727463329,-500.0,9.808e-05,2]
[355949025,1741727463339,-639.29,9.808e-05,2]
[355949026,1741727463349,-500.0,9.808e-05,2]
[355949027,1741727463359,-867.57,9.808e-05,2]
[355949028,1741727463369,-500.0,9.808e-05,2]
[355949029,1741727463379,-500.0,9.808e-05,2]
[355949030,1741727463389,-714.64,9.808e-05,2]
[355949031,1741727463400,-1395.32,9.808e-05,2]
[355949032,1741727463409,-626.52,9.808e-05,2]
[355949033,1741727463419,-717.45,9.808e-05,2]
[355949034,1741727463429,-1144.33,9.808e-05,2]
[355949035,1741727463439,-517.45,9.808e-05,2]
[355949036,1741727463450,-659.11,9.808e-05,2]
[355949037,1741727463461,-1250.46,9.808e-05,2]
[355949038,1741727463470,-500.0,9.808e-05,2]
[355949039,1741727463479,-500.0,9.808e-05,2]
[355949040,1741727463490,-500.0,9.808e-05,2]
[355949041,1741727463499,-500.0,9.808e-05,2]
[355949042,1741727463509,-500.0,9.808e-05,2]
[355949043,1741727463518,-702.38,9.808e-05,2]
[355949044,1741727463528,-500.0,9.808e-05,2]
[355949045,1741727463538,-264.45907664,9.808e-05,2]
[355949046,1741727463547,-205.60120009,9.808e-05,2]
[355949047,1741727463557,-539.28,9.808e-05,2]
[355949048,1741727463567,-674.84,9.808e-05,2]
[355949049,1741727463576,-500.0,9.808e-05,2]
[355949050,1741727463586,-500.0,9.808e-05,2]
[355949051,1741727463595,-500.0,9.808e-05,2]
[355949052,1741727463605,-960.46,9.808e-05,2]
[355949053,1741727463615,-1251.53,9.808e-05,2]
[355949054,1741727463624,-500.0,9.808e-05,2]
[355949055,1741727463634,-426.726289,9.808e-05,2]
[355949056,1741727463643,-797.94,9.808e-05,2]
[355949057,1741727463653,-151.0,9.808e-05,2]
[355949058,1741727463662,-500.0,9.808e-05,2]
[355949059,1741727463672,-500.0,9.808e-05,2]
[355949060,1741727463682,-151.0,9.808e-05,2]
[355949061,1741727463691,-500.0,9.808e-05,2]
[355949062,1741727463701,-426.726289,9.808e-05,2]
[355949063,1741727463711,-500.0,9.808e-05,2]
[355949064,1741727463721,-500.0,9.808e-05,2]
[355949065,1741727463730,-672.06,9.808e-05,2]
[355949066,1741727463739,-1030.15,9.808e-05,2]
[355949067,1741727463749,-1303.47,9.808e-05,2]
[355949068,1741727463759,-705.81,9.808e-05,2]
[355949069,1741727463768,-500.0,9.808e-05,2]
[355949070,1741727463778,-500.0,9.808e-05,2]
[355949071,1741727463788,-847.87,9.808e-05,2]
[355949072,1741727463797,-500.0,9.808e-05,2]
[355949073,1741727463807,-500.0,9.808e-05,2]
[355949074,1741727463818,-500.0,9.808e-05,2]
[355949075,1741727463827,-563.88,9.808e-05,2]
[355949076,1741727463837,-500.0,9.808e-05,2]
[355949077,1741727463847,-500.0,9.808e-05,2]
[355949078,1741727463856,-500.0,9.808e-05,2]
[355949079,1741727463866,-500.0,9.808e-05,2]
[355949080,1741727463875,-500.0,9.808e-05,2]
[355949081,1741727463884,-817.3,9.808e-05,2]
[355949082,1741727463894,-636.89,9.808e-05,2]
[355949083,1741727463904,-1085.12,9.808e-05,2]
[355949084,1741727463913,-500.0,9.808e-05,2]
[355949085,1741727463923,-500.0,9.808e-05,2]
[355949086,1741727463933,-383.422052,9.808e-05,2]
[355949087,1741727463942,-500.0,9.808e-05,2]
[355949088,1741727463951,-500.0,9.808e-05,2]
[355949089,1741727463961,-383.422052,9.808e-05,2]
[355949090,1741727463971,-500.0,9.808e-05,2]
[355949091,1741727463981,-500.0,9.808e-05,2]
[355949092,1741727463990,-500.0,9.808e-05,2]
[355949093,1741727463999,-500.0,9.808e-05,2]
[355949094,1741727464008,-1221.22,9.808e-05,2]
[355949095,1741727464017,-500.0,9.808e-05,2]
[355949096,1741727464027,-500.0,9.808e-05,2]
[355949097,1741727464036,-1128.69,9.808e-05,2]
[355949098,1741727464045,-951.45,9.808e-05,2]
[355949099,1741727464055,-500.0,9.808e-05,2]
[355949100,1741727464065,-1219.41,9.808e-05,2]
[355949101,1741727464075,-346.752883,9.808e-05,2]
[355949102,1741727464084,-511.59,9.808e-05,2]
[355949103,1741727464093,-500.0,9.808e-05,2]
[355949104,1741727464103,-346.752883,9.808e-05,2]
[355949105,1741727464112,-565.68388683,9.808e-05,2]
[355949106,1741727464121,-1234.3,9.808e-05,2]
[355949107,1741727464131,-643.73,9.808e-05,2]
[355949108,1741727464140,-500.0,9.808e-05,2]
[355949109,1741727464150,-928.97,9.808e-05,2]
[355949110,1741727464159,-1278.09,9.808e-05,2]
[355949111,1741727464168,-500.0,9.808e-05,2]
[355949112,1741727464178,-151.0,9.808e-05,2]
[355949113,1741727464187,-500.0,9.808e-05,2]
[355949114,1741727464197,-993.76,9.808e-05,2]
[355949115,1741727464207,-500.0,9.808e-05,2]
[355949116,1741727464217,-151.0,9.808e-05,2]
[355949117,1741727464227,-1013.02,9.808e-05,2]
[355949118,1741727464236,-500.0,9.808e-05,2]
[355949119,1741727464245,-191.56516,9.808e-05,2]
[355949120,1741727464255,-796.64,9.808e-05,2]
[355949121,1741727464264,-191.56516,9.808e-05,2]
[355949122,1741727464273,-500.0,9.808e-05,2]
[355949123,1741727464282,-545.69,9.808e-05,2]
[355949124,1741727464291,-287.626787,9.808e-05,2]
[355949125,1741727464301,-500.0,9.808e-05,2]
[355949126,1741727464310,-500.0,9.808e-05,2]
[355949127,1741727464319,-1108.91,9.808e-05,2]
[355949128,1741727464329,-151.0,9.808e-05,2]
[355949129,1741727464339,-500.0,9.808e-05,2]
[355949130,1741727464348,-982.15,9.808e-05,2]
[355949131,1741727464358,-500.0,9.808e-05,2]
[355949132,1741727464367,-500.0,9.808e-05,2]
[355949133,1741727464377,-500.0,9.808e-05,2]
[355949134,1741727464387,-500.0,9.808e-05,2]
[355949135,1741727464397,-500.0,9.808e-05,2]
[355949136,1741727464407,-448.813592,9.808e-05,2]
[355949137,1741727464416,-500.0,9.808e-05,2]
[355949138,1741727464425,-715.39,9.808e-05,2]
[355949139,1741727464435,-448.813592,9.808e-05,2]
[355949140,1741727464446,-500.0,9.808e-05,2]
[355949141,1741727464458,-1039.11,9.808e-05,2]
[355949142,1741727464468,-151.0,9.808e-05,2]
[355949143,1741727464477,-500.0,9.808e-05,2]
[355949144,1741727464487,-500.0,9.808e-05,2]
[355949145,1741727464497,-500.0,9.808e-05,2]
[355949146,1741727464507,-500.0,9.808e-05,2]
[355949147,1741727464517,-500.0,9.808e-05,2]
[355949148,1741727464527,-1268.89,9.808e-05,2]
[355949149,1741727464537,-649.98454747,9.808e-05,2]
[355949150,1741727464547,-500.0,9.808e-05,2]
[355949151,1741727464557,-500.0,9.808e-05,2]
[355949152,1741727464566,-1064.6,9.808e-05,2]
[355949153,1741727464576,-500.0,9.808e-05,2]
[355949154,1741727464586,-1136.19,9.808e-05,2]
[355949155,1741727464600,-205.001513,9.808e-05,2]
[355949156,1741727464610,-500.0,9.808e-05,2]
[355949157,1741727464620,-205.001513,9.808e-05,2]
[355949158,1741727464630,-500.0,9.808e-05,2]
[355949159,1741727464639,-1412.01,9.808e-05,2]
[355949160,1741727464649,-500.0,9.808e-05,2]
[355949161,1741727464660,-2161.77,9.808e-05,2]
[355949162,1741727464670,-500.0,9.808e-05,2]
[355949163,1741727464680,-151.0,9.808e-05,2]
[355949164,1741727464693,-580.33,9.808e-05,2]
[355949165,1741727464703,-1256.25,9.808e-05,2]
[355949166,1741727464714,-500.0,9.808e-05,2]
[355949167,1741727464724,-1085.53,9.808e-05,2]
[355949168,1741727464734,-500.0,9.808e-05,2]
[355949169,1741727464743,-500.0,9.808e-05,2]
[355949170,1741727464753,-500.0,9.808e-05,2]
[355949171,1741727464763,-500.0,9.808e-05,2]
[355949172,1741727464774,-500.0,9.808e-05,2]
[355949173,1741727464784,-500.0,9.808e-05,2]
[355949174,1741727464795,-1611.3,9.808e-05,2]
[355949175,1741727464804,-500.0,9.808e-05,2]
[355949176,1741727464815,-500.0,9.808e-05,2]
[355949177,1741727464824,-500.0,9.808e-05,2]
[355949178,1741727464834,-262.80075434,9.808e-05,2]
[355949179,1741727464843,-500.0,9.808e-05,2]
[355949180,1741727464852,-1215.56,9.808e-05,2]
[355949181,1741727464862,-151.0,9.808e-05,2]
[355949182,1741727464872,-500.0,9.808e-05,2]
[355949183,1741727464881,-151.0,9.808e-05,2]
[355949184,1741727464891,-1307.41,9.808e-05,2]
[355949185,1741727464900,-953.01,9.809e-05,2]
[355949186,1741727464910,-500.0,9.809e-05,2]
[355949187,1741727464919,-561.65,9.809e-05,2]
[355949188,1741727464929,-565.78,9.809e-05,2]
[355949189,1741727464939,-613.28,9.809e-05,2]
[355949190,1741727464949,-661.37,9.809e-05,2]
[355949191,1741727464959,-500.0,9.809e-05,2]
[355949192,1741727464969,-840.48,9.809e-05,2]
[355949193,1741727464979,-1460.79,9.809e-05,2]
[355949194,1741727464989,-1539.66,9.809e-05,2]
[355949195,1741727465000,-2946.04,9.809e-05,2]
[355949196,1741727465010,-1447.81,9.809e-05,2]
[355949197,1741727465020,-500.0,9.809e-05,2]
[355949198,1741727465030,-151.0,9.809e-05,2]
[355949199,1741727465040,-151.0,9.809e-05,2]
[355949200,1741727465050,-263.152545,9.809e-05,2]
[355949201,1741727465060,-263.152545,9.809e-05,2]
[355949202,1741727465070,-425.722849,9.809e-05,2]
[355949203,1741727465080,-425.722849,9.809e-05,2]
[355949204,1741727465090,-303.56343,9.809e-05,2]
[355949205,1741727465099,-303.56343,9.809e-05,2]
[355949206,1741727465109,-500.0,9.809e-05,2]
[355949207,1741727465119,-653.89,9.809e-05,2]
[355949208,1741727465129,-206.81441,9.809e-05,2]
[355949209,1741727465139,-206.81441,9.809e-05,2]
[355949210,1741727465149,-151.0,9.809e-05,2]
[355949211,1741727465159,-536.54,9.809e-05,2]
[355949212,1741727465169,-177.186002,9.809e-05,2]
[355949213,1741727465179,-177.186002,9.809e-05,2]
[355949214,1741727465188,-1052.52,9.809e-05,2]
[355949215,1741727465199,-500.0,9.809e-05,2]
[355949216,1741727465208,-10000.0,9.809e-05,2]
[355949217,1741727465218,-10000.0,9.809e-05,2]
[355949218,1741727465232,-1226.19,9.809e-05,2]
[355949219,1741727465242,-1453.68,9.809e-05,2]
[355949220,1741727465252,-500.0,9.809e-05,2]
[355949221,1741727465262,-755.4,9.809e-05,2]
[355949222,1741727465272,-151.0,9.809e-05,2]
[355949223,1741727465282,-155.904926,9.809e-05,2]
[355949224,1741727465292,-155.904926,9.809e-05,2]
[355949225,1741727465302,-241.997704,9.809e-05,2]
[355949226,1741727465312,-500.0,9.809e-05,2]
[355949227,1741727465322,-241.997704,9.809e-05,2]
[355949228,1741727465332,-500.0,9.809e-05,2]
[355949229,1741727465341,-500.0,9.809e-05,2]
[355949230,1741727465351,-500.0,9.809e-05,2]
[355949231,1741727465361,-823.125907,9.809e-05,2]
[355949232,1741727465371,-500.0,9.809e-05,2]
[355949233,1741727465381,-3581.83,9.809e-05,2]
[355949234,1741727465391,-823.125907,9.809e-05,2]
[355949235,1741727465401,-500.0,9.809e-05,2]
[355949236,1741727465412,-500.0,9.809e-05,2]
[355949237,1741727465422,-500.0,9.809e-05,2]
[355949238,1741727465432,-774.62,9.809e-05,2]
[355949239,1741727465442,-246.16022912,9.809e-05,2]
[355949240,1741727465455,-500.0,9.809e-05,2]
[355949241,1741727465465,-834.18,9.809e-05,2]
[355949242,1741727465475,-500.0,9.809e-05,2]
[355949243,1741727465484,-1165.06,9.809e-05,2]
[355949244,1741727465495,-911.82,9.809e-05,2]
[355949245,1741727465505,-500.0,9.809e-05,2]
[355949246,1741727465515,-756.03,9.809e-05,2]
[355949247,1741727465525,-953.79,9.809e-05,2]
[355949248,1741727465535,-1069.16,9.809e-05,2]
[355949249,1741727465545,-611.38456217,9.809e-05,2]
[355949250,1741727465554,-151.0,9.809e-05,2]
[355949251,1741727465565,-500.0,9.809e-05,2]
[355949252,1741727465574,-1167.03,9.809e-05,2]
[355949253,1741727465584,-500.0,9.809e-05,2]
[355949254,1741727465594,-247.4217,9.809e-05,2]
[355949255,1741727465604,-2867.572547,9.809e-05,2]
[355949256,1741727465613,-247.4217,9.809e-05,2]
[355949257,1741727465623,-2867.572547,9.809e-05,2]
[355949258,1741727465634,-599.12,9.809e-05,2]
[355949259,1741727465643,-1568.86,9.809e-05,2]
[355949260,1741727465653,-500.0,9.809e-05,2]
[355949261,1741727465663,-2727.9,9.809e-05,2]
[355949262,1741727465673,-2134.17,9.809e-05,2]
[355949263,1741727465683,-1053.71,9.809e-05,2]
[355949264,1741727465693,-500.0,9.809e-05,2]
[355949265,1741727465703,-500.0,9.809e-05,2]
[355949266,1741727465713,-500.0,9.809e-05,2]
[355949267,1741727465723,-500.0,9.809e-05,2]
[355949268,1741727465733,-1591.29,9.809e-05,2]
[355949269,1741727465743,-500.0,9.809e-05,2]
[355949270,1741727465752,-801.42,9.809e-05,2]
[355949271,1741727465762,-550.29,9.809e-05,2]
[355949272,1741727465771,-736.39,9.809e-05,2]
[355949273,1741727465781,-1284.58,9.809e-05,2]
[355949274,1741727465791,-1022.82,9.809e-05,2]
[355949275,1741727465801,-1219.19,9.809e-05,2]
[355949276,1741727465811,-859.5,9.809e-05,2]
[355949277,1741727465821,-500.17,9.809e-05,2]
[355949278,1741727465831,-1716.06,9.809e-05,2]
[355949279,1741727465841,-698.13,9.809e-05,2]
[355949280,1741727465850,-1041.79,9.809e-05,2]
[355949281,1741727465859,-500.0,9.809e-05,2]
[355949282,1741727465869,-500.0,9.809e-05,2]
[355949283,1741727465879,-1203.02,9.809e-05,2]
[355949284,1741727465888,-500.0,9.809e-05,2]
[355949285,1741727465898,-663.41,9.809e-05,2]
[355949286,1741727465907,-586.96,9.809e-05,2]
[355949287,1741727465918,-1006.28,9.809e-05,2]
[355949288,1741727465927,-834.3,9.809e-05,2]
[355949289,1741727465937,-1035.25,9.809e-05,2]
[355949290,1741727465947,-500.0,9.809e-05,2]
[355949291,1741727465956,-500.0,9.809e-05,2]
[355949292,1741727465967,-603.45,9.809e-05,2]
[355949293,1741727465976,-500.0,9.809e-05,2]
[355949294,1741727465988,-500.0,9.809e-05,2]
[355949295,1741727465997,-1131.55,9.809e-05,2]
[355949296,1741727466007,-2235.18,9.809e-05,2]
[355949297,1741727466017,-500.0,9.809e-05,2]
[355949298,1741727466027,-500.0,9.809e-05,2]
[355949299,1741727466037,-711.95,9.809e-05,2]
[355949300,1741727466047,-589.55,9.809e-05,2]
[355949301,1741727466057,-1512.88,9.809e-05,2]
[355949302,1741727466068,-502.99,9.809e-05,2]
[355949303,1741727466078,-500.0,9.809e-05,2]
[355949304,1741727466088,-500.0,9.809e-05,2]
[355949305,1741727466098,-1017.98,9.809e-05,2]
[355949306,1741727466108,-151.0,9.809e-05,2]
[355949307,1741727466118,-500.0,9.809e-05,2]
[355949308,1741727466128,-270.154411,9.81e-05,2]
[355949309,1741727466137,-151.0,9.81e-05,2]
[355949310,1741727466147,-211.649997,9.81e-05,2]
[355949311,1741727466157,-211.649997,9.81e-05,2]
[355949312,1741727466167,-247.713088,9.81e-05,2]
[355949313,1741727466177,-247.713088,9.81e-05,2]
[355949314,1741727466187,-837.46,9.81e-05,2]
[355949315,1741727466197,-151.0,9.81e-05,2]
[355949316,1741727466207,-151.0,9.81e-05,2]
[355949317,1741727466217,-3122.6,9.81e-05,2]
[355949318,1741727466227,-719.01,9.81e-05,2]
[355949319,1741727466236,-1286.87,9.81e-05,2]
[355949320,1741727466246,-157.966654,9.81e-05,2]
[355949321,1741727466255,-500.0,9.81e-05,2]
[355949322,1741727466264,-157.966654,9.81e-05,2]
[355949323,1741727466274,-4005.27,9.81e-05,2]
[355949324,1741727466283,-1338.08,9.81e-05,2]
[355949325,1741727466293,-500.0,9.81e-05,2]
[355949326,1741727466303,-1550.93,9.81e-05,2]
[355949327,1741727466312,-1384.78,9.81e-05,2]
[355949328,1741727466322,-500.0,9.81e-05,2]
[355949329,1741727466332,-710.94,9.81e-05,2]
[355949330,1741727466342,-521.21,9.81e-05,2]
[355949331,1741727466351,-1350.88,9.81e-05,2]
[355949332,1741727466361,-1190.45,9.81e-05,2]
[355949333,1741727466376,-530.48,9.81e-05,2]
[355949334,1741727466387,-1547.82,9.81e-05,2]
[355949335,1741727466396,-2015.42,9.81e-05,2]
[355949336,1741727466406,-1980.86,9.81e-05,2]
[355949337,1741727466415,-151.0,9.81e-05,2]
[355949338,1741727466425,-1942.48,9.81e-05,2]
[355949339,1741727466435,-2431.5,9.81e-05,2]
[355949340,1741727466445,-721.18,9.81e-05,2]
[355949341,1741727466459,-500.0,9.81e-05,2]
[355949342,1741727466468,-4474.69,9.81e-05,2]
[355949343,1741727466478,-1735.66,9.81e-05,2]
[355949344,1741727466489,-1238.86,9.81e-05,2]
[355949345,1741727466690,-151.0,9.81e-05,2]
[355949346,1741727466699,-151.0,9.81e-05,2]
[355949347,1741727466709,-623.608064,9.81e-05,2]
[355949348,1741727466722,-623.608064,9.81e-05,2]
[355949349,1741727466735,-623.608064,9.81e-05,2]
[355949350,1741727466748,-623.608071,9.81e-05,2]
[355949351,1741727466758,-151.0,9.81e-05,2]
[355949352,1741727466767,-151.0,9.81e-05,2]
[355949353,1741727466776,-151.0,9.81e-05,2]
[355949354,1741727466785,-151.0,9.81e-05,2]
[355949355,1741727466795,-357.4133,9.81e-05,2]
[355949356,1741727466804,-357.4133,9.81e-05,2]
[355949357,1741727466814,-357.4133,9.81e-05,2]
[355949358,1741727466823,-357.413306,9.81e-05,2]
[355949359,1741727466832,-263.814247,9.81e-05,2]
[355949360,1741727466841,-1202.396555,9.81e-05,2]
[355949361,1741727466850,-160.148705,9.81e-05,2]
[355949362,1741727466860,-151.0,9.81e-05,2]
[355949363,1741727466869,-500.0,9.81e-05,2]
[355949364,1741727466879,-500.0,9.81e-05,2]
[355949365,1741727466888,-151.0,9.81e-05,2]
[355949366,1741727466897,-293.419813,9.81e-05,2]
[355949367,1741727466906,-500.0,9.81e-05,2]
[355949368,1741727466915,-500.0,9.81e-05,2]
[355949369,1741727466925,-263.152545,9.81e-05,2]
[355949370,1741727466934,-263.152545,9.81e-05,2]
[355949371,1741727466943,-500.0,9.81e-05,2]
[355949372,1741727466953,-500.0,9.81e-05,2]
[355949373,1741727466962,-535.4,9.81e-05,2]
[355949374,1741727466971,-151.0,9.81e-05,2]
[355949375,1741727466981,-500.0,9.81e-05,2]
[355949376,1741727466990,-151.0,9.81e-05,2]
[355949377,1741727467000,-987.88,9.81e-05,2]
[355949378,1741727467009,-1119.83,9.81e-05,2]
[355949379,1741727467018,-151.0,9.81e-05,2]
[355949380,1741727467027,-151.0,9.81e-05,2]
[355949381,1741727467036,-500.0,9.81e-05,2]
[355949382,1741727467046,-552.59,9.81e-05,2]
[355949383,1741727467055,-500.0,9.81e-05,2]
[355949384,1741727467065,-500.0,9.81e-05,2]
[355949385,1741727467074,-649.96,9.81e-05,2]
[355949386,1741727467084,-500.0,9.81e-05,2]
[355949387,1741727467093,-500.0,9.81e-05,2]
[355949388,1741727467102,-500.0,9.81e-05,2]
[355949389,1741727467112,-1545.75,9.81e-05,2]
[355949390,1741727467121,-500.0,9.81e-05,2]
[355949391,1741727467131,-500.0,9.81e-05,2]
[355949392,1741727467140,-1063.61,9.81e-05,2]
[355949393,1741727467149,-994.14,9.81e-05,2]
[355949394,1741727467159,-500.0,9.81e-05,2]
[355949395,1741727467168,-425.722849,9.81e-05,2]
[355949396,1741727467177,-500.0,9.81e-05,2]
[355949397,1741727467186,-425.722849,9.81e-05,2]
[355949398,1741727467197,-1323.83,9.81e-05,2]
[355949399,1741727467206,-211.366234,9.81e-05,2]
[355949400,1741727467216,-211.366234,9.81e-05,2]
[355949401,1741727467225,-500.0,9.81e-05,2]
[355949402,1741727467235,-151.0,9.81e-05,2]
[355949403,1741727467245,-151.0,9.81e-05,2]
[355949404,1741727467254,-211.366234,9.81e-05,2]
[355949405,1741727467263,-211.366234,9.81e-05,2]
[355949406,1741727467272,-500.0,9.81e-05,2]
[355949407,1741727467282,-783.07,9.81e-05,2]
[355949408,1741727467292,-500.0,9.81e-05,2]
[355949409,1741727467302,-454.328299,9.81e-05,2]
[355949410,1741727467311,-454.328299,9.81e-05,2]
[355949411,1741727467321,-500.0,9.81e-05,2]
[355949412,1741727467331,-454.328299,9.81e-05,2]
[355949413,1741727467340,-454.328299,9.81e-05,2]
[355949414,1741727467350,-593.20819705,9.81e-05,2]
[355949415,1741727467360,-500.0,9.81e-05,2]
[355949416,1741727467370,-266.500502,9.81e-05,2]
[355949417,1741727467379,-614.59,9.81e-05,2]